fUSD/lending_fUSD_20260401
["ID","MTS","AMOUNT","RATE_DAILY","PERIOD"]
[419230122,1775025100051,-546.18721078,0.00042204,2]
[419230123,1775025100060,-300.0,0.00042204,2]
[419230124,1775025100069,-337.01397761,0.00042204,2]
[419230125,1775025100080,-1088.17745011,0.00042204,2]
[419230126,1775025100089,-332.61603263,0.00042204,2]
[419230127,1775025100099,-466.28028094,0.00042204,2]
[419230128,1775025100108,-475.83894259,0.00042204,2]
[419230129,1775025100118,-300.0,0.00042204,2]
[419230130,1775025100129,-455.00178601,0.00042204,2]
[419230131,1775025100139,-330.0995539,0.00042204,2]
[419230132,1775025100149,-300.0,0.00042204,2]
[419230133,1775025100160,-427.18104734,0.00042204,2]
[419230134,1775025100171,-300.0,0.00042204,2]
[419230135,1775025100182,-300.0,0.00042204,2]
[419230136,1775025100193,-428.70108579,0.00042204,2]
[419230137,1775025100204,-301.3902486,0.00042204,2]
[419230138,1775025100214,-313.72732525,0.00042204,2]
[419230139,1775025100223,-300.0,0.00042204,2]
[419230140,1775025100233,-300.0,0.00042204,2]
[419230141,1775025100243,-300.0,0.00042204,2]
[419230142,1775025100252,-600.87455597,0.00042204,2]
[419230143,1775025100262,-356.88599095,0.00042204,2]
[419230144,1775025100271,-300.0,0.00042204,2]
[419230145,1775025100280,-300.0,0.00042204,2]
[419230146,1775025100289,-300.0,0.00042204,2]
[419230147,1775025100298,-511.54454058,0.00042204,2]
[419230148,1775025100308,-1060.59968985,0.00042204,2]
[419230149,1775025100318,-898.55637842,0.00042204,2]
[419230150,1775025100328,-914.00804146,0.00042204,2]
[419230151,1775025100337,-540.12382875,0.00042204,2]
[419230152,1775025100348,-300.0,0.00042204,2]
[419230153,1775025100357,-300.0,0.00042204,2]
[419230154,1775025100366,-300.02131866,0.00042204,2]
[419230155,1775025100375,-300.0,0.00042204,2]
[419230156,1775025100385,-300.0,0.00042204,2]
[419230157,1775025100394,-1140.35876667,0.00042204,2]
[419230158,1775025100403,-307.7519343,0.00042204,2]
[419230159,1775025100412,-381.53095223,0.00042204,2]
[419230160,1775025100422,-859.33439387,0.00042204,2]
[419230161,1775025100431,-507.4797806,0.00042204,2]
[419230162,1775025100441,-300.0,0.00042204,2]
[419230163,1775025100451,-455.38339828,0.00042204,2]
[419230164,1775025100461,-300.0,0.00042204,2]
[419230165,1775025100471,-309.02964191,0.00042204,2]
[419230166,1775025100482,-300.0,0.00042204,2]
[419230167,1775025100491,-461.10385501,0.00042204,2]
[419230168,1775025100501,-300.0,0.00042204,2]
[419230169,1775025100510,-300.0,0.00042204,2]
[419230170,1775025100519,-355.701434,0.00042204,2]
[419230171,1775025100529,-449.16792545,0.00042204,2]
[419230172,1775025100538,-300.0,0.00042204,2]
[419230173,1775025100547,-300.0,0.00042204,2]
[419230174,1775025100557,-303.06686183,0.00042204,2]
[419230175,1775025100567,-300.0,0.00042204,2]
[419230176,1775025100577,-1346.0,0.00042262,2]
[419230177,1775025100586,-144696.0,0.000423,60]
[419230178,1775025100597,-399.1,0.000423,90]
[419230179,1775025100607,-5926.8377,0.00042337,2]
[419230180,1775025100617,-350.0,0.00042375,8]
[419230181,1775025100626,-200.0,0.000424,18]
[419230182,1775025100635,-4464.99193245,0.000424,120]
[419230183,1775025100645,-868.24358161,0.000424,120]
[419230184,1775025100654,-1200.0,0.00042404,120]
[419230185,1775025100665,-500.0,0.00042411,30]
[419230186,1775025100675,-319.16835844,0.00042417,2]
[419230187,1775025100684,-162.16711784,0.00042465,120]
[419230188,1775025100693,-150.0,0.00042466,120]
[419230189,1775025100704,-175.0,0.00042466,120]
[419230190,1775025100714,-150.0,0.00042466,120]
[419230191,1775025100723,-181.0,0.00042466,120]
[419230192,1775025100733,-856.0,0.00042466,120]
[419230193,1775025100743,-500.0,0.00042466,2]
[419230194,1775025100753,-1004.34,0.00042466,120]
[419230195,1775025100762,-453.6888377,0.00042466,120]
[419230196,1775025100772,-5926.8377,0.00042488,2]
[419230197,1775025100785,-5926.8377,0.00042488,2]
[419230198,1775025100795,-13425.45763652,0.000425,120]
[419230199,1775025100804,-3333.05570171,0.000425,30]
[419230200,1775025100814,-1761.00725527,0.000425,60]
[419230201,1775025100823,-381.85229208,0.000425,60]
[419230202,1775025100832,-500.0,0.000425,7]
[419230203,1775025100842,-500.0,0.000425,7]
[419230204,1775025100851,-500.0,0.000425,7]
[419230205,1775025100861,-500.0,0.000425,7]
[419230206,1775025100870,-500.0,0.000425,7]
[419230207,1775025100880,-500.0,0.000425,7]
[419230208,1775025100889,-500.0,0.000425,7]
[419230209,1775025100900,-500.0,0.000425,7]
[419230210,1775025100910,-500.0,0.000425,7]
[419230211,1775025100919,-500.0,0.000425,7]
[419230212,1775025100929,-500.0,0.000425,7]
[419230213,1775025100939,-500.0,0.000425,7]
[419230214,1775025100948,-500.0,0.000425,7]
[419230215,1775025100959,-500.0,0.000425,7]
[419230216,1775025100969,-500.0,0.000425,7]
[419230217,1775025100980,-500.0,0.000425,7]
[419230218,1775025100990,-500.0,0.000425,7]
[419230219,1775025100999,-500.0,0.000425,7]
[419230220,1775025101012,-500.0,0.000425,7]
[419230221,1775025101021,-500.0,0.000425,7]
[419230222,1775025101030,-500.0,0.000425,7]
[419230223,1775025101040,-500.0,0.000425,7]
[419230224,1775025101049,-500.0,0.000425,7]
[419230225,1775025101058,-264.73,0.000425,7]
[419230226,1775025101067,-500.0,0.000425,7]
[419230227,1775025101078,-500.0,0.000425,7]
[419230228,1775025101087,-500.0,0.000425,7]
[419230229,1775025101097,-500.0,0.000425,7]
[419230230,1775025101108,-500.0,0.000425,7]
[419230231,1775025101117,-500.0,0.000425,7]
[419230232,1775025101127,-500.0,0.000425,7]
[419230233,1775025101136,-500.0,0.000425,7]
[419230234,1775025101146,-500.0,0.000425,7]
[419230235,1775025101155,-500.0,0.000425,7]
[419230236,1775025101165,-500.0,0.000425,7]
[419230237,1775025101176,-500.0,0.000425,7]
[419230238,1775025101185,-500.0,0.000425,7]
[419230239,1775025101194,-500.0,0.000425,7]
[419230240,1775025101205,-500.0,0.000425,7]
[419230241,1775025101215,-500.0,0.000425,7]
[419230242,1775025101225,-500.0,0.000425,7]
[419230243,1775025101235,-500.0,0.000425,7]
[419230244,1775025101245,-500.0,0.000425,7]
[419230245,1775025101254,-500.0,0.000425,7]
[419230246,1775025101263,-500.0,0.000425,7]
[419230247,1775025101273,-500.0,0.000425,7]
[419230248,1775025101282,-500.0,0.000425,7]
[419230249,1775025101291,-500.0,0.000425,7]
[419230250,1775025101301,-500.0,0.000425,7]
[419230251,1775025101310,-500.0,0.000425,7]
[419230252,1775025101320,-500.0,0.000425,7]
[419230253,1775025101329,-500.0,0.000425,7]
[419230254,1775025101338,-500.0,0.000425,7]
[419230255,1775025101349,-500.0,0.000425,7]
[419230256,1775025101359,-500.0,0.000425,7]
[419230257,1775025101368,-500.0,0.000425,7]
[419230258,1775025101378,-500.0,0.000425,7]
[419230259,1775025101389,-500.0,0.000425,7]
[419230260,1775025101399,-500.0,0.000425,7]
[419230261,1775025101409,-500.0,0.000425,7]
[419230262,1775025101418,-500.0,0.000425,7]
[419230263,1775025101427,-500.0,0.000425,7]
[419230264,1775025101436,-500.0,0.000425,7]
[419230265,1775025101445,-500.0,0.000425,7]
[419230266,1775025101455,-500.0,0.000425,7]
[419230267,1775025101464,-500.0,0.000425,7]
[419230268,1775025101474,-500.0,0.000425,7]
[419230269,1775025101484,-520.06,0.000425,7]
[419230270,1775025101494,-500.0,0.000425,7]
[419230271,1775025101503,-500.0,0.000425,7]
[419230272,1775025101513,-718.93,0.000425,120]
[419230273,1775025101523,-150.0,0.00042546,120]
[419230274,1775025101534,-231.0,0.00042548,120]
[419230275,1775025101544,-211.16,0.00042553,50]
[419230276,1775025101554,-10000.0,0.000426,14]
[419230277,1775025101563,-153.0,0.000426,120]
[419230278,1775025101572,-500.0,0.0004263,30]
[419230279,1775025101581,-500.0,0.0004263,30]
[419230280,1775025101590,-500.0,0.0004263,30]
[419230281,1775025101600,-500.0,0.0004263,30]
[419230282,1775025101609,-500.0,0.0004263,30]
[419230283,1775025101618,-500.0,0.0004263,30]
[419230284,1775025101627,-500.0,0.0004263,30]
[419230285,1775025101636,-350.47635044,0.0004263,30]
[419230286,1775025101646,-81954.65979121,0.00042633,30]
[419230287,1775025101655,-14641.25483892,0.00042633,120]
[419230288,1775025101664,-156.99011647,0.00042637,2]
[419230289,1775025101673,-5926.8377,0.00042638,2]
[419230290,1775025101682,-5926.8377,0.00042638,2]
[419230291,1775025101692,-500.0,0.00042672,2]
[419230292,1775025101701,-1100.0,0.00042678,120]
[419230293,1775025101711,-500.0,0.00042685,30]
[419230294,1775025101720,-2000.0,0.00042687,30]
[419230295,1775025101729,-2000.0,0.00042687,30]
[419230296,1775025101738,-2000.0,0.00042687,30]
[419230297,1775025101747,-2000.0,0.00042687,30]
[419230298,1775025101756,-2000.0,0.00042687,30]
[419230299,1775025101765,-2000.0,0.00042687,30]
[419230300,1775025101774,-2000.0,0.00042687,30]
[419230301,1775025101784,-1597.76,0.00042687,30]
[419230302,1775025101792,-936.36,0.000427,90]
[419230303,1775025101802,-1234.45,0.000427,90]
[419230304,1775025101811,-822.96,0.000427,90]
[419230305,1775025101820,-1380.06,0.000427,90]
[419230306,1775025101830,-870.36,0.000427,90]
[419230307,1775025101839,-702.24,0.000427,90]
[419230308,1775025101849,-1130.27,0.000427,90]
[419230309,1775025101859,-232.12,0.0004273,90]
[419230310,1775025101868,-856.0,0.0004274,120]
[419230311,1775025101878,-4000.0,0.0004274,14]
[419230312,1775025101887,-450.0,0.0004274,10]
[419230313,1775025101897,-250.0,0.0004274,10]
[419230314,1775025101906,-500.0,0.0004274,120]
[419230315,1775025101915,-500.0,0.0004274,120]
[419230316,1775025101924,-500.0,0.0004274,120]
[419230317,1775025101933,-500.0,0.0004274,120]
[419230318,1775025101943,-500.0,0.0004274,120]
[419230319,1775025101952,-500.0,0.0004274,120]
[419230320,1775025101962,-500.0,0.0004274,120]
[419230321,1775025101971,-500.0,0.0004274,120]
[419230322,1775025101981,-500.0,0.0004274,120]
[419230323,1775025101990,-500.0,0.0004274,120]
[419230324,1775025101999,-500.0,0.0004274,120]
[419230325,1775025102010,-500.0,0.0004274,120]
[419230326,1775025102020,-500.0,0.0004274,120]
[419230327,1775025102031,-500.0,0.0004274,120]
[419230328,1775025102041,-610.72934933,0.0004274,120]
[419230329,1775025102051,-2000.0,0.0004274,10]
[419230330,1775025102060,-1004.34,0.0004274,120]
[419230331,1775025102069,-300.0,0.00042747,2]
[419230332,1775025102079,-553.51227966,0.00042762,9]
[419230333,1775025102088,-5926.8377,0.00042789,2]
[419230334,1775025102098,-5926.8377,0.00042789,2]
[419230335,1775025102108,-152.0,0.0004279,6]
[419230336,1775025102117,-151.0,0.00042808,93]
[419230337,1775025102126,-500.0,0.00042808,93]
[419230338,1775025102135,-2243.77935778,0.0004287,5]
[419230339,1775025102144,-260589.88472703,0.0004288,60]
[419230340,1775025102154,-151.0,0.0004288,120]
[419230341,1775025102164,-151.0,0.0004288,120]
[419230342,1775025102174,-1481.011134,0.0004288,120]
[419230343,1775025102185,-457.498785,0.0004288,120]
[419230344,1775025102196,-1481.011134,0.0004288,120]
[419230345,1775025102205,-457.498785,0.0004288,120]
[419230346,1775025102214,-151.0,0.0004288,30]
[419230347,1775025102224,-373.639694,0.0004288,120]
[419230348,1775025102236,-1481.011134,0.0004288,120]
[419230349,1775025102246,-457.498785,0.0004288,120]
[419230350,1775025102258,-151.0,0.0004288,30]
[419230351,1775025102270,-151.0,0.0004288,120]
[419230352,1775025102281,-373.639694,0.0004288,120]
[419230353,1775025102293,-1481.011134,0.0004288,120]
[419230354,1775025102303,-151.0,0.0004288,120]
[419230355,1775025102313,-457.498785,0.0004288,120]
[419230356,1775025102324,-151.0,0.0004288,30]
[419230357,1775025102335,-151.0,0.0004288,120]
[419230358,1775025102344,-373.639694,0.0004288,120]
[419230359,1775025102354,-151.0,0.0004288,120]
[419230360,1775025102363,-2747.118785,0.0004288,120]
[419230361,1775025102373,-373.639694,0.0004288,120]
[419230362,1775025102382,-151.0,0.0004288,120]
[419230363,1775025102391,-151.0,0.0004288,120]
[419230364,1775025102400,-2747.118785,0.0004288,120]
[419230365,1775025102411,-151.0,0.0004288,120]
[419230366,1775025102423,-151.0,0.0004288,120]
[419230367,1775025102433,-2747.118785,0.0004288,120]
[419230368,1775025102443,-2747.118785,0.0004288,120]
[419230369,1775025102454,-151.0,0.0004288,120]
[419230370,1775025102464,-648.137916,0.0004288,120]
[419230371,1775025102474,-151.0,0.0004288,120]
[419230372,1775025102486,-151.0,0.0004288,120]
[419230373,1775025102495,-648.137916,0.0004288,120]
[419230374,1775025102507,-151.0,0.0004288,120]
[419230375,1775025102520,-648.137916,0.0004288,120]
[419230376,1775025102536,-151.0,0.0004288,120]
[419230377,1775025102550,-648.137916,0.0004288,120]
[419230378,1775025102564,-151.0,0.0004288,120]
[419230379,1775025102575,-670.410936,0.0004288,120]
[419230380,1775025102586,-215.394161,0.0004288,120]
[419230381,1775025102601,-670.410936,0.0004288,120]
[419230382,1775025102615,-188.8771,0.0004288,120]
[419230383,1775025102630,-188.8771,0.0004288,120]
[419230384,1775025102643,-670.410936,0.0004288,120]
[419230385,1775025102657,-188.8771,0.0004288,120]
[419230386,1775025102670,-670.410936,0.0004288,120]
[419230387,1775025102682,-492.031885,0.0004288,120]
[419230388,1775025102695,-755.641847,0.0004288,120]
[419230389,1775025102708,-188.8771,0.0004288,120]
[419230390,1775025102722,-322.032328,0.0004288,120]
[419230391,1775025102734,-4126.945995,0.0004288,120]
[419230392,1775025102747,-755.641847,0.0004288,120]
[419230393,1775025102762,-492.031885,0.0004288,120]
[419230394,1775025102774,-415.281493,0.0004288,120]
[419230395,1775025102786,-322.032328,0.0004288,120]
[419230396,1775025102797,-755.641847,0.0004288,120]
[419230397,1775025102810,-4126.945995,0.0004288,120]
[419230398,1775025102821,-492.031885,0.0004288,120]
[419230399,1775025102834,-204.743484,0.0004288,120]
[419230400,1775025102848,-1002.417346,0.0004288,120]
[419230401,1775025102861,-415.281493,0.0004288,120]
[419230402,1775025102872,-322.032328,0.0004288,120]
[419230403,1775025102885,-4126.945995,0.0004288,120]
[419230404,1775025102898,-191.294335,0.0004288,120]
[419230405,1775025102911,-755.641847,0.0004288,120]
[419230406,1775025102925,-492.031885,0.0004288,120]
[419230407,1775025102937,-204.743484,0.0004288,120]
[419230408,1775025102946,-1002.417346,0.0004288,120]
[419230409,1775025102956,-415.281493,0.0004288,120]
[419230410,1775025102967,-322.032328,0.0004288,120]
[419230411,1775025102979,-4126.945995,0.0004288,120]
[419230412,1775025102992,-191.294335,0.0004288,120]
[419230413,1775025103002,-204.743484,0.0004288,120]
[419230414,1775025103013,-1002.417346,0.0004288,120]
[419230415,1775025103025,-151.0,0.0004288,120]
[419230416,1775025103039,-2968.75711,0.0004288,120]
[419230417,1775025103051,-415.281493,0.0004288,120]
[419230418,1775025103063,-191.294335,0.0004288,120]
[419230419,1775025103076,-151.0,0.0004288,120]
[419230420,1775025103089,-204.743484,0.0004288,120]
[419230421,1775025103100,-1002.417346,0.0004288,120]
[419230422,1775025103112,-400.0,0.0004288,120]
[419230423,1775025103123,-905.046665,0.0004288,120]
[419230424,1775025103135,-151.0,0.0004288,120]
[419230425,1775025103147,-2968.75711,0.0004288,120]
[419230426,1775025103158,-191.294335,0.0004288,120]
[419230427,1775025103170,-905.046665,0.0004288,120]
[419230428,1775025103181,-1306.949914,0.0004288,120]
[419230429,1775025103193,-905.046665,0.0004288,120]
[419230430,1775025103204,-1018.206725,0.0004288,120]
[419230431,1775025103216,-1306.949914,0.0004288,120]
[419230432,1775025103228,-151.0,0.0004288,120]
[419230433,1775025103239,-905.046665,0.0004288,120]
[419230434,1775025103251,-2968.75711,0.0004288,120]
[419230435,1775025103268,-1306.949914,0.0004288,120]
[419230436,1775025103279,-1018.206725,0.0004288,120]
[419230437,1775025103291,-2968.75711,0.0004288,120]
[419230438,1775025103302,-151.0,0.0004288,120]
[419230439,1775025103313,-1306.949914,0.0004288,120]
[419230440,1775025103325,-400.0,0.0004288,120]
[419230441,1775025103336,-1018.206725,0.0004288,120]
[419230442,1775025103347,-151.0,0.0004288,120]
[419230443,1775025103359,-400.0,0.0004288,120]
[419230444,1775025103371,-1018.206725,0.0004288,120]
[419230445,1775025103383,-1239.253497,0.0004288,120]
[419230446,1775025103395,-151.0,0.0004288,120]
[419230447,1775025103407,-151.0,0.0004288,120]
[419230448,1775025103419,-400.0,0.0004288,120]
[419230449,1775025103431,-151.0,0.0004288,120]
[419230450,1775025103443,-1239.253497,0.0004288,120]
[419230451,1775025103454,-282.98342,0.0004288,120]
[419230452,1775025103466,-1239.253497,0.0004288,120]
[419230453,1775025103478,-587.336107,0.0004288,120]
[419230454,1775025103490,-1239.253497,0.0004288,120]
[419230455,1775025103502,-587.336107,0.0004288,120]
[419230456,1775025103514,-587.336107,0.0004288,120]
[419230457,1775025103526,-151.0,0.0004288,120]
[419230458,1775025103538,-404.966357,0.0004288,120]
[419230459,1775025103550,-151.0,0.0004288,120]
[419230460,1775025103561,-587.336107,0.0004288,120]
[419230461,1775025103573,-151.0,0.0004288,120]
[419230462,1775025103585,-404.966357,0.0004288,120]
[419230463,1775025103597,-151.0,0.0004288,120]
[419230464,1775025103609,-151.0,0.0004288,120]
[419230465,1775025103621,-404.966357,0.0004288,120]
[419230466,1775025103632,-404.966357,0.0004288,120]
[419230467,1775025103643,-161.805166,0.0004288,120]
[419230468,1775025103654,-161.805166,0.0004288,120]
[419230469,1775025103666,-559.055511,0.0004288,120]
[419230470,1775025103677,-161.805166,0.0004288,120]
[419230471,1775025103688,-559.055511,0.0004288,120]
[419230472,1775025103701,-161.805166,0.0004288,120]
[419230473,1775025103712,-600.356502,0.0004288,120]
[419230474,1775025103724,-689.341716,0.0004288,120]
[419230475,1775025103735,-559.055511,0.0004288,120]
[419230476,1775025103746,-600.356502,0.0004288,120]
[419230477,1775025103759,-689.341716,0.0004288,120]
[419230478,1775025103770,-559.055511,0.0004288,120]
[419230479,1775025103782,-600.356502,0.0004288,120]
[419230480,1775025103793,-689.341716,0.0004288,120]
[419230481,1775025103805,-600.356502,0.0004288,120]
[419230482,1775025103816,-689.341716,0.0004288,120]
[419230483,1775025103828,-649.377886,0.0004288,120]
[419230484,1775025103840,-151.0,0.0004288,120]
[419230485,1775025103851,-649.377886,0.0004288,120]
[419230486,1775025103862,-151.0,0.0004288,120]
[419230487,1775025103873,-179.79151,0.0004288,120]
[419230488,1775025103884,-801.714845,0.0004288,120]
[419230489,1775025103896,-649.377886,0.0004288,120]
[419230490,1775025103908,-483.27777,0.0004288,60]
[419230491,1775025103920,-671.201111,0.0004288,120]
[419230492,1775025103932,-151.0,0.0004288,30]
[419230493,1775025103943,-801.714845,0.0004288,120]
[419230494,1775025103954,-151.0,0.0004288,120]
[419230495,1775025103966,-649.377886,0.0004288,120]
[419230496,1775025103977,-483.27777,0.0004288,60]
[419230497,1775025103988,-671.201111,0.0004288,120]
[419230498,1775025103999,-151.0,0.0004288,120]
[419230499,1775025104011,-273.873245,0.0004288,120]
[419230500,1775025104021,-801.714845,0.0004288,120]
[419230501,1775025104033,-483.27777,0.0004288,60]
[419230502,1775025104044,-671.201111,0.0004288,120]
[419230503,1775025104056,-273.873245,0.0004288,120]
[419230504,1775025104067,-801.714845,0.0004288,120]
[419230505,1775025104080,-151.0,0.0004288,120]
[419230506,1775025104091,-3080.917359,0.0004288,120]
[419230507,1775025104103,-196.226046,0.0004288,120]
[419230508,1775025104114,-483.27777,0.0004288,60]
[419230509,1775025104125,-671.201111,0.0004288,120]
[419230510,1775025104136,-273.873245,0.0004288,120]
[419230511,1775025104148,-151.0,0.0004288,120]
[419230512,1775025104159,-485.818484,0.0004288,120]
[419230513,1775025104170,-151.0,0.0004288,120]
[419230514,1775025104188,-3080.917359,0.0004288,120]
[419230515,1775025104199,-196.226046,0.0004288,120]
[419230516,1775025104209,-273.873245,0.0004288,120]
[419230517,1775025104222,-151.0,0.0004288,120]
[419230518,1775025104233,-151.0,0.0004288,120]
[419230519,1775025104245,-485.818484,0.0004288,120]
[419230520,1775025104257,-162.748676,0.0004288,120]
[419230521,1775025104269,-3080.917359,0.0004288,120]
[419230522,1775025104281,-196.226046,0.0004288,120]
[419230523,1775025104294,-151.0,0.0004288,120]
[419230524,1775025104306,-485.818484,0.0004288,120]
[419230525,1775025104318,-3080.917359,0.0004288,120]
[419230526,1775025104331,-1194.257938,0.0004288,120]
[419230527,1775025104342,-196.226046,0.0004288,120]
[419230528,1775025104354,-485.818484,0.0004288,120]
[419230529,1775025104365,-1163.182786,0.0004288,120]
[419230530,1775025104376,-151.0,0.0004288,120]
[419230531,1775025104388,-1194.257938,0.0004288,120]
[419230532,1775025104399,-151.0,0.0004288,120]
[419230533,1775025104412,-1163.182786,0.0004288,120]
[419230534,1775025104423,-175.691598,0.0004288,120]
[419230535,1775025104434,-1194.257938,0.0004288,120]
[419230536,1775025104445,-1032.993865,0.0004288,120]
[419230537,1775025104457,-151.0,0.0004288,120]
[419230538,1775025104469,-1163.182786,0.0004288,120]
[419230539,1775025104480,-175.691598,0.0004288,120]
[419230540,1775025104492,-1194.257938,0.0004288,120]
[419230541,1775025104505,-1032.993865,0.0004288,120]
[419230542,1775025104518,-241.720894,0.0004288,120]
[419230543,1775025104530,-1163.182786,0.0004288,120]
[419230544,1775025104541,-175.691598,0.0004288,120]
[419230545,1775025104552,-560.669219,0.0004288,120]
[419230546,1775025104563,-1032.993865,0.0004288,120]
[419230547,1775025104574,-175.691598,0.0004288,120]
[419230548,1775025104585,-560.669219,0.0004288,120]
[419230549,1775025104596,-1032.993865,0.0004288,120]
[419230550,1775025104608,-270.000816,0.0004288,120]
[419230551,1775025104620,-206.472759,0.0004288,120]
[419230552,1775025104632,-560.669219,0.0004288,120]
[419230553,1775025104644,-557.258778,0.0004288,120]
[419230554,1775025104657,-151.0,0.0004288,120]
[419230555,1775025104669,-270.000816,0.0004288,120]
[419230556,1775025104681,-206.472759,0.0004288,120]
[419230557,1775025104693,-560.669219,0.0004288,120]
[419230558,1775025104704,-557.258778,0.0004288,120]
[419230559,1775025104716,-206.472759,0.0004288,120]
[419230560,1775025104728,-158.773849,0.0004288,120]
[419230561,1775025104740,-270.000816,0.0004288,120]
[419230562,1775025104751,-557.258778,0.0004288,120]
[419230563,1775025104761,-270.000816,0.0004288,120]
[419230564,1775025104772,-206.472759,0.0004288,120]
[419230565,1775025104784,-557.258778,0.0004288,120]
[419230566,1775025104795,-151.0,0.0004288,120]
[419230567,1775025104805,-151.0,0.0004288,120]
[419230568,1775025104816,-210.897654,0.0004288,120]
[419230569,1775025104828,-151.0,0.0004288,120]
[419230570,1775025104839,-210.897654,0.0004288,120]
[419230571,1775025104849,-210.897654,0.0004288,120]
[419230572,1775025104861,-1879.674718,0.0004288,120]
[419230573,1775025104871,-342.803973,0.0004288,120]
[419230574,1775025104882,-151.0,0.0004288,120]
[419230575,1775025104893,-210.897654,0.0004288,120]
[419230576,1775025104904,-342.803973,0.0004288,120]
[419230577,1775025104915,-1879.674718,0.0004288,120]
[419230578,1775025104926,-321.9781,0.0004288,120]
[419230579,1775025104937,-151.0,0.0004288,120]
[419230580,1775025104948,-342.803973,0.0004288,120]
[419230581,1775025104959,-321.9781,0.0004288,120]
[419230582,1775025104970,-1879.674718,0.0004288,120]
[419230583,1775025104981,-271.074529,0.0004288,120]
[419230584,1775025104991,-663.501084,0.0004288,120]
[419230585,1775025105003,-321.9781,0.0004288,120]
[419230586,1775025105013,-1879.674718,0.0004288,120]
[419230587,1775025105024,-342.803973,0.0004288,120]
[419230588,1775025105035,-151.0,0.0004288,120]
[419230589,1775025105046,-663.501084,0.0004288,120]
[419230590,1775025105057,-321.9781,0.0004288,120]
[419230591,1775025105068,-306.45397,0.0004288,120]
[419230592,1775025105080,-971.472798,0.0004288,120]
[419230593,1775025105091,-306.45397,0.0004288,120]
[419230594,1775025105102,-971.472798,0.0004288,120]
[419230595,1775025105113,-1030.82704,0.0004288,120]
[419230596,1775025105123,-268.345093,0.0004288,120]
[419230597,1775025105135,-1471.650873,0.0004288,120]
[419230598,1775025105145,-306.45397,0.0004288,120]
[419230599,1775025105156,-1030.82704,0.0004288,120]
[419230600,1775025105167,-971.472798,0.0004288,120]
[419230601,1775025105178,-985.594617,0.0004288,120]
[419230602,1775025105189,-2803.308424,0.0004288,120]
[419230603,1775025105200,-268.345093,0.0004288,120]
[419230604,1775025105210,-175.208189,0.0004288,120]
[419230605,1775025105224,-1471.650873,0.0004288,120]
[419230606,1775025105235,-306.45397,0.0004288,120]
[419230607,1775025105246,-1030.82704,0.0004288,120]
[419230608,1775025105256,-151.0,0.0004288,120]
[419230609,1775025105269,-971.472798,0.0004288,120]
[419230610,1775025105281,-2803.308424,0.0004288,120]
[419230611,1775025105292,-985.594617,0.0004288,120]
[419230612,1775025105304,-268.345093,0.0004288,120]
[419230613,1775025105316,-175.208189,0.0004288,120]
[419230614,1775025105328,-1471.650873,0.0004288,120]
[419230615,1775025105340,-1030.82704,0.0004288,120]
[419230616,1775025105353,-663.501084,0.0004288,120]
[419230617,1775025105365,-2803.308424,0.0004288,120]
[419230618,1775025105378,-985.594617,0.0004288,120]
[419230619,1775025105389,-268.345093,0.0004288,120]
[419230620,1775025105400,-175.208189,0.0004288,120]
[419230621,1775025105412,-1471.650873,0.0004288,120]